bitfinex/quotes_BTCUSD_20260311
["timestamp","ask_amount","ask_price","bid_price","bid_amount"]
[1773204935645,0.0616438,70211.0,70196.0,0.0002]
[1773204936252,0.0616438,70211.0,70197.0,0.06104698]
[1773204936488,0.00144,70210.0,70197.0,0.06104698]
[1773204936694,0.00144,70209.0,70199.0,0.06104698]
[1773204937051,0.00011231,70211.0,70199.0,0.06104698]
[1773204937259,0.00144,70210.0,70199.0,0.06104698]
[1773204939102,0.00011231,70211.0,70210.0,0.49856]
[1773204939301,0.00155231,70211.0,70204.0,0.06104698]
[1773204940526,0.00155231,70211.0,70202.0,0.06104698]
[1773204942073,0.07276709,70211.0,70202.0,0.13226948]
[1773204942252,0.07276661,70211.0,70202.0,0.13226948]
[1773204943659,0.07276661,70211.0,70202.0,0.13246948]
[1773204943843,0.07276661,70211.0,70202.0,0.13206948]
[1773204944415,0.07276661,70211.0,70202.0,0.0714225]
[1773204944617,0.07276661,70211.0,70202.0,0.13246948]
[1773204944939,0.07276661,70211.0,70202.0,0.0002]
[1773204946200,0.05694202,70210.0,70198.0,0.07122642]
[1773204946378,0.07276661,70211.0,70198.0,0.07122642]
[1773204946580,0.07276661,70211.0,70199.0,0.06104698]
[1773204947116,0.07132661,70211.0,70199.0,0.06104698]
[1773204947286,0.00144,70210.0,70199.0,0.06104698]
[1773204948187,0.07121594,70209.0,70199.0,0.06104698]
[1773204948375,0.07121594,70209.0,70199.0,0.07122595]
[1773204950337,0.05688329,70208.0,70190.0,0.13315513]
[1773204950523,0.05688329,70208.0,70188.0,0.07143642]
[1773204951085,0.05688329,70208.0,70195.0,0.0002]
[1773204951491,0.05688329,70208.0,70188.0,0.13335785]
[1773204951818,0.05688329,70208.0,70189.0,0.06192071]
[1773204952336,0.07121796,70207.0,70191.0,0.06192071]
[1773204952534,0.00144,70206.0,70191.0,0.06192071]
[1773204954371,0.07121999,70205.0,70192.0,0.07123318]
[1773204954645,0.07121999,70205.0,70193.0,0.06094272]
[1773204955729,0.21330384,70206.0,70193.0,0.06094272]
[1773204955932,0.00144,70205.0,70193.0,0.06094272]
[1773204956132,0.00144,70204.0,70193.0,0.06094272]
[1773204956301,0.07121626,70209.0,70194.0,0.07123115]
[1773204956507,0.00144,70208.0,70195.0,0.06192071]
[1773204957374,0.00144,70218.0,70199.0,0.06192071]
[1773204957634,0.07142276,70223.0,70199.0,0.06192071]
[1773204957635,0.00144,70217.0,70199.0,0.06203302]
[1773204958471,0.00144,70217.0,70201.0,0.04704667]
[1773204958672,0.00144,70217.0,70202.0,0.06336071]
[1773204959272,0.00022001,70215.0,70202.0,0.06336071]
[1773204960238,0.00022001,70215.0,70202.0,0.06192071]
[1773204960487,0.05688329,70213.0,70199.0,0.00011231]
[1773204960660,0.05688329,70213.0,70202.0,0.001]
[1773204960864,0.05688329,70213.0,70202.0,0.0006]
[1773204961195,0.05688329,70213.0,70199.0,0.06203302]
[1773204961391,0.05688329,70213.0,70202.0,0.001]
[1773204961742,0.17050309,70239.0,70204.0,0.05461833]
[1773204961943,0.17050309,70239.0,70211.0,0.05461833]
[1773204961944,0.00144,70235.0,70211.0,0.05461833]
[1773204962154,0.00144,70235.0,70210.0,0.14607464]
[1773204962155,0.00144,70235.0,70213.0,0.05461833]
[1773204962706,0.00144,70235.0,70214.0,0.07121086]
[1773204962923,0.00144,70235.0,70215.0,0.05481443]
[1773204964060,0.00144,70235.0,70215.0,0.05581443]
[1773204964516,0.00144,70235.0,70215.0,0.05681443]
[1773204965691,0.07262962,70235.0,70216.0,0.07120884]
[1773204965896,0.05688329,70234.0,70216.0,0.07120884]
[1773204966460,0.05688329,70234.0,70217.0,0.0546369]
[1773204967967,0.05688329,70234.0,70218.0,0.07120681]
[1773204968154,0.07119081,70234.0,70219.0,0.05531099]
[1773204969565,0.07119081,70234.0,70218.0,0.07120681]
[1773204970753,0.07119081,70234.0,70217.0,0.07120681]
[1773204970754,0.13335182,70234.0,70217.0,0.07120681]
[1773204972758,0.06248827,70233.0,70207.0,0.07141695]
[1773204972924,0.06248827,70233.0,70207.0,0.07141781]
[1773204973074,0.06248827,70233.0,70207.0,0.07141747]
[1773204973679,0.07119081,70234.0,70207.0,0.07141747]
[1773204973680,0.00144,70232.0,70207.0,0.07141747]
[1773204973903,0.06280599,70231.0,70207.0,0.07141747]
[1773204974302,0.06280599,70231.0,70208.0,0.07121695]
[1773204974496,0.07119464,70230.0,70208.0,0.07121695]
[1773204974732,0.06280599,70229.0,70208.0,0.07121695]
[1773204977135,0.07119667,70228.0,70208.0,0.07121695]
[1773204977347,0.06333723,70227.0,70208.0,0.07121695]
[1773204977547,0.06333723,70225.0,70208.0,0.07121695]
[1773204978536,0.06333723,70225.0,70202.0,0.07122244]
[1773204978738,0.06333723,70225.0,70201.0,0.07122202]
[1773204979461,0.06363541,70223.0,70201.0,0.07122202]
[1773204980001,0.06363541,70223.0,70200.0,0.07165417]
[1773204980751,0.06363541,70223.0,70200.0,0.07125417]
[1773204980948,0.06463541,70223.0,70200.0,0.07125417]
[1773204981261,0.07120275,70222.0,70200.0,3e-05]
[1773204981461,0.06392473,70221.0,70200.0,3e-05]
[1773204981663,0.06440092,70219.0,70200.0,3e-05]
[1773204983582,0.06440092,70217.0,70200.0,3e-05]
[1773204984788,0.06540092,70217.0,70200.0,3e-05]
[1773204985192,0.06540092,70217.0,70199.0,3e-05]
[1773204985614,0.06492954,70215.0,70199.0,3e-05]
[1773204985810,0.06492954,70213.0,70199.0,3e-05]
[1773204986745,0.06492954,70213.0,70200.0,0.0002]
[1773204987399,0.06492954,70211.0,70200.0,0.0002]
[1773204987601,0.06492954,70211.0,70199.0,3e-05]
[1773204987602,0.06518155,70209.0,70199.0,3e-05]
[1773204988300,0.06518155,70209.0,70193.0,0.0002]
[1773204988515,0.06529336,70209.0,70193.0,0.0002]
[1773204989508,0.06529336,70209.0,70193.0,0.071432]
[1773204989715,0.07121695,70208.0,70193.0,0.0002]
[1773204989933,0.06542544,70207.0,70193.0,0.0002]
[1773204990831,0.06542544,70205.0,70193.0,0.0002]
[1773204991449,0.06542544,70205.0,70172.0,0.00106137]
[1773204991648,0.06542544,70205.0,70181.0,0.07144345]
[1773204991843,0.07122101,70204.0,70181.0,0.07144345]
[1773204992042,0.06443533,70203.0,70181.0,0.07144345]
[1773204992426,0.06299533,70203.0,70181.0,0.07144345]
[1773204992624,0.06299533,70201.0,70181.0,0.07819082]
[1773204993162,0.06299533,70201.0,70181.0,0.07144345]
[1773204993366,0.06299533,70199.0,70181.0,0.07144345]
[1773204994168,0.06299533,70197.0,70193.0,0.0002]
[1773204996586,0.13422445,70196.0,70185.0,0.0714402]
[1773204997926,0.13422445,70196.0,70184.0,0.04268097]
[1773204998119,0.13422445,70196.0,70185.0,0.0712402]
[1773205000296,0.07122912,70196.0,70160.0,0.16778893]
[1773205000519,0.07122912,70196.0,70150.0,0.00023]
[1773205000520,0.06603036,70194.0,70172.0,0.07160871]
[1773205000746,0.06603036,70192.0,70172.0,0.08075173]
[1773205000913,0.06603036,70192.0,70173.0,0.00937686]
[1773205001413,0.06603036,70190.0,70174.0,0.07125146]
[1773205003285,0.07123623,70189.0,70174.0,0.07125146]
[1773205003478,0.06603036,70188.0,70174.0,0.07145146]
[1773205003686,0.06603036,70186.0,70174.0,0.0002]
[1773205004278,0.06603036,70186.0,70172.0,0.0003553]
[1773205004479,0.06603036,70186.0,70166.0,0.07145932]
[1773205004988,0.06614211,70186.0,70166.0,0.07145932]
[1773205005382,0.07124029,70185.0,70164.0,0.07126069]
[1773205005656,0.06603036,70184.0,70164.0,0.07126069]
[1773205007530,0.07124232,70183.0,70160.0,0.07126567]
[1773205007731,0.07124232,70183.0,70159.0,0.07146581]
[1773205007732,0.06603036,70182.0,70159.0,0.07146581]
[1773205008874,0.06603036,70180.0,70160.0,0.01079861]
[1773205009464,0.07124232,70183.0,70160.0,0.01079861]
[1773205009465,0.06603036,70178.0,70160.0,0.01079861]
[1773205009960,0.07268841,70177.0,70161.0,0.08249544]
[1773205010785,0.00011175,70186.0,70167.0,0.04875279]
[1773205010913,0.00011175,70186.0,70171.0,0.17789779]
[1773205011111,0.00144,70185.0,70172.0,0.01138852]
[1773205011316,0.00144,70184.0,70172.0,0.01138852]
[1773205011750,0.00144,70183.0,70173.0,0.07125247]
[1773205012015,0.00144,70183.0,70174.0,0.01156145]
[1773205013246,0.00144,70182.0,70174.0,0.01156145]
[1773205013443,0.00144,70182.0,70174.0,0.01256145]
[1773205013684,0.00011175,70186.0,70174.0,0.01256145]
[1773205013882,0.00144,70185.0,70175.0,0.07125044]
[1773205014201,0.07135109,70186.0,70175.0,0.07125044]
[1773205014487,0.00144,70184.0,70175.0,0.07125044]
[1773205014674,0.07135109,70186.0,70175.0,0.07125044]
[1773205014885,0.00144,70185.0,70175.0,0.07125044]
[1773205015294,0.00144,70184.0,70175.0,0.07169884]
[1773205015701,0.00144,70184.0,70175.0,0.07269884]
[1773205015918,0.00011175,70186.0,70175.0,0.07269884]
[1773205016098,0.00144,70183.0,70175.0,0.07169884]
[1773205016478,0.00144,70183.0,70175.0,0.07269884]
[1773205016893,0.00144,70182.0,70175.0,0.07269884]
[1773205017324,0.06867651,70186.0,70175.0,0.07225044]
[1773205017528,0.06856476,70184.0,70175.0,0.07225044]
[1773205017821,0.06856476,70184.0,70175.0,0.07125044]
[1773205018020,0.13980699,70184.0,70175.0,0.07225044]
[1773205019018,0.13980609,70184.0,70175.0,0.07125044]
[1773205019223,0.13980643,70184.0,70175.0,0.07125044]
[1773205020318,0.13980643,70184.0,70170.0,0.07125552]
[1773205020522,0.07124167,70184.0,70170.0,0.07152579]
[1773205021468,0.0714515,70194.0,70172.0,0.00040166]
[1773205021655,0.00022001,70194.0,70173.0,0.00026032]
[1773205021862,0.00144,70193.0,70174.0,0.00026032]
[1773205022158,0.00022001,70194.0,70181.0,0.00026032]
[1773205022374,0.00144,70192.0,70182.0,0.07124333]
[1773205022657,0.07145122,70194.0,70182.0,0.07124333]
[1773205022856,0.00144,70191.0,70182.0,0.07124333]
[1773205023838,0.00144,70190.0,70182.0,0.07124333]
[1773205025051,0.00144,70190.0,70182.0,0.07224333]
[1773205025565,0.00144,70190.0,70182.0,0.07124333]
[1773205025797,0.00144,70189.0,70182.0,0.07148304]
[1773205026887,0.00144,70189.0,70182.0,0.07248304]
[1773205027396,0.00144,70189.0,70182.0,0.07148304]
[1773205027562,0.00144,70189.0,70182.0,0.07248304]
[1773205028701,0.00144,70189.0,70180.0,0.07124333]
[1773205029822,0.00166001,70189.0,70180.0,0.07124333]
[1773205030189,0.00166001,70189.0,70182.0,0.001]
[1773205030586,0.06962546,70188.0,70179.0,0.07124333]
[1773205030992,0.00166001,70189.0,70181.0,0.07124435]
[1773205033138,0.00166001,70189.0,70180.0,0.07124467]
[1773205034091,0.07289673,70189.0,70180.0,0.07124467]
[1773205034769,0.07289673,70189.0,70178.0,0.07124435]
[1773205035040,0.06984254,70188.0,70178.0,0.07124638]
[1773205035245,0.14108077,70188.0,70174.0,0.07125146]
[1773205037449,0.06984254,70188.0,70174.0,0.07125146]
[1773205037650,0.14108041,70188.0,70174.0,0.07125146]
[1773205037853,0.14107993,70188.0,70174.0,0.07125146]
[1773205039757,0.07035755,70187.0,70168.0,0.00144]
[1773205039970,0.07035755,70187.0,70164.0,0.07125958]
[1773205039971,0.0707306,70187.0,70165.0,0.07126058]
[1773205040427,0.0707306,70187.0,70164.0,0.0712606]
[1773205041649,0.0707306,70187.0,70163.0,0.07166233]
[1773205041650,0.07123927,70186.0,70163.0,0.07166233]
[1773205041866,0.07054016,70185.0,70163.0,0.07166233]
[1773205044237,0.07107212,70183.0,70163.0,0.07166233]
[1773205044364,0.07107212,70181.0,70163.0,0.07166233]
[1773205044574,0.07107212,70181.0,70166.0,0.0002]
[1773205045403,0.00144,70180.0,70166.0,0.0002]
[1773205045608,0.14239021,70185.0,70167.0,0.00022889]
[1773205045949,0.00144,70179.0,70166.0,0.0002]
[1773205046130,0.07124739,70178.0,70167.0,0.07125856]
[1773205048719,0.00144,70183.0,70169.0,0.00020641]
[1773205048908,0.00144,70182.0,70169.0,0.00144]
[1773205049124,0.00144,70183.0,70170.0,0.00020641]
[1773205049431,0.00144,70183.0,70170.0,0.00057946]
[1773205049599,0.00144,70183.0,70171.0,0.08285678]
[1773205049799,0.00144,70183.0,70172.0,0.00195867]
[1773205050633,0.00144,70183.0,70173.0,0.07125247]
[1773205050921,0.00144,70183.0,70174.0,0.00201779]
[1773205052294,0.00144,70183.0,70174.0,0.00301779]
[1773205052646,0.00144,70183.0,70175.0,0.07125044]
[1773205054479,0.00144,70183.0,70175.0,0.07225044]
[1773205054799,0.00144,70183.0,70175.0,0.07125044]
[1773205055002,0.00144,70183.0,70175.0,0.07225044]
[1773205055367,0.00144,70183.0,70175.0,0.07325044]
[1773205055569,0.00144,70183.0,70175.0,0.07225044]
[1773205055804,0.00144,70183.0,70175.0,0.07325044]
[1773205055966,0.00144,70183.0,70175.0,0.07225044]
[1773205056335,0.00144,70183.0,70175.0,0.07125044]
[1773205056637,0.00144,70183.0,70175.0,0.07225044]
[1773205057326,0.07238509,70182.0,70171.0,0.07125357]
[1773205057518,0.07238509,70182.0,70172.0,0.07125247]
[1773205057873,0.07238509,70182.0,70175.0,0.001]
[1773205059348,0.14368586,70181.0,70171.0,0.07125357]
[1773205060529,0.07256944,70180.0,70170.0,0.07162837]
[1773205061155,0.00144,70183.0,70170.0,0.07162837]
[1773205061300,1e-08,70189.0,70171.0,0.0001302]
[1773205061507,0.00144,70188.0,70171.0,0.0001302]
[1773205061699,0.07267531,70188.0,70171.0,6.7e-06]
[1773205061907,0.00144,70187.0,70171.0,6.7e-06]
[1773205062122,0.00144,70187.0,70170.0,0.07306837]
[1773205062474,0.07267531,70185.0,70170.0,0.07306837]
[1773205064177,0.14389749,70184.0,70170.0,0.07326837]
[1773205064345,0.07265619,70184.0,70170.0,0.07326837]
[1773205064550,0.07265619,70184.0,70171.0,0.001]
[1773205064749,0.07265619,70184.0,70170.0,0.07326837]
[1773205065674,0.14395528,70183.0,70172.0,0.07125349]
[1773205067526,0.07271296,70183.0,70171.0,0.06250698]
[1773205067728,0.07271296,70183.0,70172.0,0.07125349]
[1773205068823,0.0727486,70182.0,70172.0,0.07125349]
[1773205069440,0.0727486,70182.0,70171.0,0.06250698]
[1773205069678,0.0727486,70182.0,70172.0,0.07125349]
[1773205069878,0.07278173,70180.0,70170.0,0.0712545]
[1773205070148,0.07278173,70178.0,70170.0,0.0712545]
[1773205071825,0.07278173,70178.0,70170.0,0.0722545]
[1773205072055,0.07278173,70178.0,70170.0,0.0712545]
[1773205072577,0.00144,70179.0,70170.0,0.0712545]
[1773205073365,0.07268638,70179.0,70170.0,0.0712545]
[1773205073947,0.07268638,70179.0,70170.0,0.071575]
[1773205074755,0.07268638,70179.0,70170.0,0.071775]
[1773205077675,0.00144,70179.0,70170.0,0.071775]
[1773205078919,0.14673919,70179.0,70170.0,0.071775]
[1773205079295,0.00144,70179.0,70170.0,0.071775]
[1773205079614,0.0726864,70179.0,70170.0,0.071775]
[1773205080618,0.0726864,70179.0,70169.0,0.07125685]
[1773205080619,0.07406636,70178.0,70169.0,0.07125685]
[1773205080772,0.07443914,70178.0,70169.0,0.07125685]
[1773205081598,0.07407811,70177.0,70169.0,1.01e-06]
[1773205082050,0.07407811,70177.0,70163.0,0.0005607]
[1773205082051,0.07407811,70177.0,70160.0,0.0002]
[1773205082261,0.07407811,70177.0,70160.0,0.07146544]
[1773205082470,0.07407811,70177.0,70160.0,0.0002]
[1773205084239,0.07408934,70175.0,70160.0,0.0002]
[1773205084439,0.07408934,70175.0,70151.0,0.00192]
[1773205084440,0.07431934,70175.0,70147.0,0.07127888]
[1773205084944,0.07431934,70175.0,70154.0,0.0002]
[1773205086258,0.07409986,70173.0,70151.0,0.00048]
[1773205086461,0.07409986,70171.0,70151.0,0.00048]
[1773205087601,0.07409986,70171.0,70146.0,0.07127977]
[1773205088362,0.17513809,70169.0,70146.0,0.07127977]
[1773205088596,0.07415874,70168.0,70146.0,0.07127977]
[1773205089018,0.07415874,70168.0,70145.0,0.0002]
[1773205089240,0.07415874,70168.0,70145.0,0.07148014]
[1773205089697,0.07415874,70168.0,70150.0,0.04875599]
[1773205090104,0.00144,70167.0,70150.0,0.04875599]
[1773205090505,0.00144,70166.0,70151.0,0.07127482]
[1773205090700,0.14542117,70167.0,70151.0,0.07127482]
[1773205090892,0.07560261,70166.0,70151.0,0.07127482]
[1773205091294,0.00144,70165.0,70151.0,0.07127482]
[1773205091489,0.07416261,70166.0,70151.0,0.07127482]
[1773205091997,0.07125856,70167.0,70151.0,0.07127482]
[1773205092208,0.07416544,70166.0,70151.0,0.07127482]
[1773205092611,0.14542546,70166.0,70149.0,0.07127482]
[1773205092824,0.1454252,70166.0,70149.0,0.07127482]
[1773205093037,0.00144,70165.0,70149.0,0.07127482]
[1773205093233,0.00144,70164.0,70149.0,0.07127482]
[1773205093434,0.07125976,70166.0,70149.0,0.07127482]
[1773205093639,0.00144,70176.0,70154.0,0.04875599]
[1773205093874,0.00144,70175.0,70160.0,0.04875599]
[1773205094640,0.00144,70175.0,70162.0,0.07126364]
[1773205094815,0.00144,70175.0,70163.0,0.00043779]
[1773205096238,0.00144,70175.0,70163.0,0.00143779]
[1773205097072,0.00144,70175.0,70164.0,0.07126161]
[1773205098172,0.00144,70175.0,70163.0,0.07226161]
[1773205098173,0.07438096,70174.0,70163.0,0.07226225]
[1773205098692,0.07438096,70174.0,70164.0,0.001]
[1773205099096,0.07125247,70173.0,70164.0,0.07226107]
[1773205099251,0.07438096,70172.0,70164.0,0.07226107]
[1773205099451,0.07438096,70172.0,70164.0,0.07326107]
[1773205099893,0.07438096,70172.0,70164.0,0.07226107]
[1773205100094,0.07438096,70172.0,70155.0,0.07127075]
[1773205101146,0.07438096,70172.0,70153.0,0.07127075]
[1773205101147,0.0712545,70171.0,70153.0,0.07127075]
[1773205101354,0.07437402,70170.0,70153.0,0.07127075]
[1773205101534,0.07437402,70168.0,70153.0,0.07127075]
[1773205102885,0.07437402,70168.0,70152.0,0.07127075]
[1773205103010,0.07437402,70168.0,70153.0,0.001]
[1773205103232,0.07441079,70166.0,70154.0,0.07127177]
[1773205103432,0.07441079,70166.0,70152.0,0.07127075]
[1773205104780,0.07441079,70166.0,70150.0,0.0715038]
[1773205105456,0.07439954,70164.0,70150.0,0.0715038]
[1773205105660,0.07439954,70162.0,70150.0,0.0715038]
[1773205107438,0.07438675,70160.0,70150.0,0.0715038]
[1773205108588,0.07438675,70160.0,70148.0,0.07127583]
[1773205108790,0.07438675,70160.0,70147.0,0.0002]
[1773205109298,0.07438675,70160.0,70147.0,0.07147873]
[1773205109445,0.07437246,70158.0,70147.0,0.07147873]
[1773205109850,0.00144,70157.0,70147.0,0.07147873]
[1773205110049,0.07435671,70156.0,70147.0,0.07147873]
[1773205110251,0.07435671,70156.0,70145.0,0.07128097]
[1773205111352,0.14561761,70165.0,70146.0,0.0004]
[1773205111558,0.00144,70164.0,70147.0,0.07127888]
[1773205111696,0.07579671,70164.0,70147.0,0.07127888]
[1773205112201,0.07434027,70162.0,70147.0,0.07127888]
[1773205114386,0.07434027,70162.0,70145.0,0.07139272]
[1773205115128,0.07454671,70161.0,70145.0,0.07159272]
[1773205115742,0.07125349,70172.0,70145.0,0.07159272]
[1773205115967,0.0745257,70170.0,70145.0,0.07303272]
[1773205116512,0.0745257,70167.0,70145.0,0.07303272]
[1773205116909,0.00144,70166.0,70145.0,0.07303272]
[1773205117138,0.0745257,70165.0,70145.0,0.07303272]
[1773205117459,0.0745257,70163.0,70145.0,0.07303272]
[1773205117862,0.0759434,70162.0,70145.0,0.07303272]
[1773205118216,0.00144,70161.0,70145.0,0.07303272]
[1773205118665,0.0745034,70162.0,70145.0,0.07303272]
[1773205118891,0.00144,70160.0,70145.0,0.07303272]
[1773205119039,0.00144,70160.0,70145.0,0.07403272]
[1773205119369,0.0745034,70162.0,70145.0,0.07303272]
[1773205119521,0.00144,70159.0,70145.0,0.07503272]
[1773205119744,0.00144,70158.0,70145.0,0.07503272]
[1773205120061,0.00144,70158.0,70145.0,0.07403272]
[1773205120265,0.0745034,70162.0,70145.0,0.07603272]
[1773205120467,0.07595628,70161.0,70145.0,0.07503272]
[1773205120628,0.07595628,70161.0,70145.0,0.07403272]
[1773205120831,0.07595628,70161.0,70145.0,0.07603272]
[1773205121253,0.00144,70160.0,70145.0,0.07503272]
[1773205121429,0.00144,70160.0,70145.0,0.07603272]
[1773205122055,0.00144,70160.0,70145.0,0.07403272]
[1773205122582,0.00144,70160.0,70145.0,0.07503272]
[1773205122872,0.00144,70160.0,70145.0,0.07303272]
[1773205123467,0.00144,70160.0,70145.0,0.07403272]
[1773205124349,0.00144,70160.0,70145.0,0.07503272]
[1773205124520,0.07451324,70159.0,70145.0,0.07503272]
[1773205124719,0.07451324,70159.0,70145.0,0.07359272]
[1773205125147,0.07451324,70159.0,70145.0,0.07259272]
[1773205125550,0.07451324,70159.0,70145.0,0.07359272]
[1773205125779,0.07451324,70159.0,70145.0,0.07259272]
[1773205126091,0.07451324,70159.0,70145.0,0.07159272]
[1773205126709,0.0744851,70161.0,70145.0,0.07159272]
[1773205126918,0.0744851,70157.0,70145.0,0.07159272]
[1773205129076,0.00144,70156.0,70145.0,0.07159272]
[1773205129292,0.00144,70156.0,70145.0,0.07359272]
[1773205129907,0.00144,70156.0,70145.0,0.07259272]
[1773205130099,0.00144,70156.0,70145.0,0.07159272]
[1773205130318,0.00144,70156.0,70145.0,0.07359272]
[1773205131132,0.00022001,70162.0,70145.0,0.07359272]
[1773205131303,0.00144,70161.0,70145.0,0.07359272]
[1773205131506,0.0758656,70161.0,70145.0,0.07359272]
[1773205132105,0.0758656,70161.0,70145.0,0.07159272]
[1773205132335,0.00144,70160.0,70145.0,0.07159272]
[1773205132841,0.07586564,70160.0,70145.0,0.07159272]
[1773205133243,0.00022001,70158.0,70145.0,0.07159272]
[1773205133404,0.00022001,70158.0,70145.0,0.07259272]
[1773205133752,0.00022001,70158.0,70145.0,0.07159272]
[1773205133929,0.00022001,70158.0,70145.0,0.07303272]
[1773205134123,0.00022001,70158.0,70145.0,0.07403272]
[1773205134327,0.07442857,70157.0,70145.0,0.07259272]
[1773205135538,0.07442857,70157.0,70145.0,0.07359272]
[1773205135746,0.07442857,70157.0,70144.0,0.07272091]
[1773205135920,0.07442857,70157.0,70145.0,0.07127888]
[1773205136117,0.07442857,70157.0,70145.0,0.07227888]
[1773205136554,0.07442857,70157.0,70145.0,0.07127888]
[1773205142043,0.07442857,70157.0,70145.0,0.07227888]
[1773205142484,0.07442857,70157.0,70145.0,0.07127888]
[1773205142685,0.00144,70160.0,70145.0,0.07247888]
[1773205142855,0.00144,70160.0,70145.0,0.07347888]
[1773205143265,0.07595141,70160.0,70145.0,0.07347888]
[1773205143661,0.07595141,70160.0,70145.0,0.07247888]
[1773205143938,0.07591263,70159.0,70145.0,0.07247888]
[1773205144343,0.07591263,70159.0,70145.0,0.07347888]
[1773205145183,0.00144,70159.0,70145.0,0.07247888]
[1773205145689,0.00144,70159.0,70145.0,0.07347888]
[1773205146042,0.00144,70159.0,70145.0,0.07247888]
[1773205146257,0.00022001,70162.0,70145.0,0.07147888]
[1773205146459,0.07587374,70161.0,70145.0,0.07347888]
[1773205146666,0.07587374,70161.0,70145.0,0.07247888]
[1773205146890,0.00144,70160.0,70145.0,0.07247888]
[1773205147105,0.07587374,70160.0,70145.0,0.07147888]
[1773205147261,0.07443374,70160.0,70145.0,0.07247888]
[1773205147463,0.07587374,70159.0,70145.0,0.07147888]
[1773205147993,0.07587374,70159.0,70145.0,0.07247888]
[1773205148360,0.07443374,70159.0,70145.0,0.07247888]
[1773205148678,0.00045001,70175.0,70149.0,0.048778]
[1773205148861,0.00144001,70170.0,70160.0,0.048778]
[1773205149052,0.00144001,70170.0,70160.0,0.12296725]
[1773205149253,0.00144001,70170.0,70161.0,0.07126466]
[1773205150570,0.00144001,70170.0,70161.0,0.07226466]
[1773205150971,0.00144001,70170.0,70161.0,0.07126466]
[1773205151401,0.00144001,70170.0,70161.0,0.07226466]
[1773205151710,0.00144001,70170.0,70161.0,0.07326466]
[1773205152299,0.00144001,70170.0,70161.0,0.07226466]
[1773205152734,0.00144001,70170.0,70161.0,0.07326466]
[1773205153145,0.00144001,70170.0,70161.0,0.07126466]
[1773205153503,0.00144001,70170.0,70161.0,0.07326466]
[1773205153947,0.00144001,70170.0,70161.0,0.07226466]
[1773205154336,0.00144001,70170.0,70161.0,0.07326466]
[1773205154853,0.00144001,70170.0,70161.0,0.07126466]
[1773205155019,0.00144001,70170.0,70161.0,0.07326466]
[1773205155553,0.00144001,70170.0,70161.0,0.07226466]
[1773205155757,0.00144001,70170.0,70161.0,0.07326466]
[1773205156412,0.00144001,70170.0,70161.0,0.07226466]
[1773205156612,0.00144001,70170.0,70161.0,0.07326466]
[1773205156795,0.00144001,70170.0,70161.0,0.07226466]
[1773205157096,0.00562,70180.0,70167.0,0.07418925]
[1773205157248,0.00562,70180.0,70170.0,0.048778]
[1773205157457,0.00562,70180.0,70171.0,0.0712545]
[1773205157659,0.00562,70180.0,70171.0,0.14544375]
[1773205158283,0.00599285,70180.0,70171.0,0.14544375]
[1773205158487,0.00599285,70180.0,70171.0,0.0712545]
[1773205159020,1e-08,70180.0,70171.0,0.0712545]
[1773205159226,0.00144,70184.0,70172.0,0.07418925]
[1773205159422,0.00022001,70190.0,70173.0,0.07125247]
[1773205159627,0.00022001,70190.0,70174.0,0.07349097]
[1773205159779,1e-08,70191.0,70179.0,0.12226897]
[1773205159984,1e-08,70191.0,70180.0,0.07349097]
[1773205160211,0.06831992,70190.0,70172.0,0.07162579]
[1773205161031,0.00144,70189.0,70172.0,0.07162579]
[1773205161415,0.00144,70189.0,70180.0,0.001]
[1773205161619,0.13955716,70188.0,70180.0,0.001]
[1773205161809,0.06831992,70187.0,70177.0,0.07124741]
[1773205163191,0.07123724,70188.0,70177.0,0.07124741]
[1773205163498,0.06831992,70187.0,70177.0,0.07124741]
[1773205164148,0.07123927,70186.0,70173.0,0.07125196]
[1773205164575,0.06831992,70185.0,70173.0,0.07125196]
[1773205166333,0.06831992,70183.0,70162.0,0.07270356]
[1773205166535,0.06831992,70183.0,70153.0,0.23976991]
[1773205166536,0.06831992,70181.0,70157.0,0.07126825]
[1773205167159,0.06831992,70181.0,70156.0,0.07126974]
[1773205168250,0.06831992,70179.0,70154.0,0.07126974]
[1773205168694,0.06831992,70179.0,70152.0,0.00562]
[1773205168845,0.06831992,70179.0,70152.0,0.0768937]
[1773205170578,0.07124739,70178.0,70152.0,0.0768937]
[1773205170785,0.06831992,70177.0,70152.0,0.0768937]
[1773205171003,0.06831992,70175.0,70152.0,0.0768937]
[1773205172419,0.06931992,70175.0,70152.0,0.0768937]
[1773205174027,0.07125146,70174.0,70152.0,0.0768937]
[1773205174222,0.06831992,70173.0,70153.0,0.07349097]
[1773205174597,0.00144,70172.0,70153.0,0.07349097]
[1773205174801,0.06831992,70171.0,70153.0,0.07349097]
[1773205175246,0.00144,70170.0,70153.0,0.07349097]
[1773205176005,0.07125552,70170.0,70154.0,0.07127177]
[1773205176324,0.00144,70169.0,70163.0,0.0004]
[1773205176534,0.07225552,70170.0,70163.0,0.0004]
[1773205176743,0.00144,70169.0,70163.0,0.0004]
[1773205176939,0.07225552,70170.0,70163.0,0.0004]
[1773205177143,0.00144,70168.0,70163.0,0.0004]
[1773205177935,0.07125552,70170.0,70163.0,0.0004]
[1773205178175,0.07125755,70168.0,70163.0,0.0004]
[1773205179440,0.07225755,70168.0,70163.0,0.0004]
[1773205180056,0.07325755,70168.0,70163.0,0.0004]
[1773205182081,0.07225755,70168.0,70163.0,0.0004]
[1773205182683,0.07325755,70168.0,70163.0,0.0004]
[1773205183599,0.07325755,70168.0,70163.0,0.0006]
[1773205184484,0.07225755,70168.0,70156.0,0.13632626]
[1773205184680,0.07125755,70168.0,70156.0,0.13632626]
[1773205184880,0.07225755,70168.0,70156.0,0.13632626]
[1773205185121,0.07325755,70168.0,70156.0,0.13632626]
[1773205185297,0.07225755,70168.0,70156.0,0.13632626]
[1773205185502,0.07125755,70168.0,70156.0,0.13632626]
[1773205185858,0.06555357,70167.0,70156.0,0.07126908]
[1773205186381,0.07125958,70166.0,70156.0,0.07126908]
[1773205187442,0.07125958,70166.0,70155.0,0.07147024]
[1773205188737,0.0712591,70167.0,70155.0,0.07147024]
[1773205188936,0.001,70166.0,70155.0,0.07147024]
[1773205189339,0.0712591,70167.0,70155.0,0.07147024]
[1773205189798,0.001,70166.0,70155.0,0.07147024]
[1773205190524,0.0712606,70165.0,70155.0,0.07147024]
[1773205190705,0.0712606,70165.0,70155.0,0.13692142]
[1773205191853,0.0712606,70165.0,70155.0,0.07147024]
[1773205192906,0.07125755,70168.0,70155.0,0.07147024]
[1773205193327,0.001,70165.0,70155.0,0.07147024]
[1773205194940,0.07125755,70168.0,70155.0,0.07147024]
[1773205195158,0.07226154,70165.0,70155.0,0.07147024]
[1773205195648,0.13757496,70165.0,70152.0,0.07709367]
[1773205195985,0.13757496,70165.0,70153.0,0.06545118]
[1773205195986,0.07126078,70165.0,70153.0,0.06545118]
[1773205196638,0.07226078,70165.0,70153.0,0.06545118]